bitfinex/quotes_ETHUSD_20251031
["timestamp","ask_amount","ask_price","bid_price","bid_amount"]
[1761949004397,0.4615,3867.2,3867.1,2.58791709]
[1761949004615,0.4615,3867.2,3867.1,0.002]
[1761949005508,0.89267119,3867.5,3867.1,0.002]
[1761949005808,0.4615,3867.2,3867.1,2.58788695]
[1761949005981,0.4871,3867.4,3867.1,2.58788695]
[1761949006787,0.4871,3867.4,3867.1,0.002]
[1761949009421,0.4871,3867.4,3867.1,2.58786252]
[1761949009707,0.4871,3867.4,3867.1,0.002]
[1761949009910,0.4871,3867.4,3867.1,2.58791412]
[1761949012127,0.4827,3867.2,3867.1,0.002]
[1761949012288,0.62023712,3867.2,3867.1,0.002]
[1761949012489,0.9719,3867.2,3867.1,0.002]
[1761949015692,1.37751087,3867.2,3867.1,0.002]
[1761949019511,0.88831087,3867.2,3867.1,0.002]
[1761949020339,0.40561087,3867.2,3867.1,0.36995917]
[1761949020952,0.1839,3867.9,3867.1,0.36995917]
[1761949020953,0.4892,3867.6,3867.1,0.02785917]
[1761949024152,0.40558802,3867.5,3867.1,0.02785917]
[1761949024378,0.40558802,3867.5,3867.3,4.82519448]
[1761949024670,0.40558802,3867.5,3867.4,2.95367366]
[1761949024849,0.001,3867.9,3867.8,2.58544909]
[1761949025025,0.001,3867.9,3867.8,7.77859806]
[1761949025354,0.001,3867.9,3867.8,8.09484357]
[1761949026558,0.001,3867.9,3867.8,9.49452357]
[1761949026740,0.001,3867.9,3867.8,11.18504892]
[1761949030029,0.001,3867.9,3867.8,6.01775444]
[1761949030377,0.001,3867.9,3867.8,6.35985444]
[1761949037186,0.001,3867.9,3867.8,6.36185444]
[1761949039980,0.001,3867.9,3867.8,6.01975444]
[1761949040383,0.001,3867.9,3867.8,6.36185444]
[1761949041904,0.001,3867.9,3867.8,6.01975444]
[1761949042201,0.001,3867.9,3867.8,2.58744909]
[1761949042563,0.001,3867.9,3867.8,2.92954909]
[1761949044515,0.001,3867.9,3867.8,2.95540358]
[1761949044792,0.001,3867.9,3867.8,3.29750358]
[1761949045196,0.001,3867.9,3867.8,2.92954909]
[1761949045498,0.001,3867.9,3867.8,4.81405273]
[1761949045690,0.001,3867.9,3867.8,4.78819824]
[1761949045879,0.001,3867.9,3867.8,4.81405273]
[1761949051718,0.001,3867.9,3867.8,4.10399824]
[1761949054502,0.001,3867.9,3867.8,4.44609824]
[1761949058937,0.4747,3867.9,3867.8,4.10399824]
[1761949059104,0.9567,3867.9,3867.8,2.58744909]
[1761949059702,0.4747,3867.9,3867.8,2.58744909]
[1761949059905,0.001,3867.9,3867.8,2.58744909]
[1761949063955,0.4747,3867.9,3867.8,2.58744909]
[1761949064129,1.1416,3867.9,3867.8,2.58744909]
[1761949069352,1.1416,3867.9,3867.8,0.002]
[1761949071944,1.54712559,3867.9,3867.8,0.002]
[1761949072149,1.70193815,3867.9,3867.8,0.002]
[1761949075182,1.70193815,3867.9,3867.8,2.58744909]
[1761949075484,1.70193815,3867.9,3867.8,0.002]
[1761949079614,1.29641256,3867.9,3867.8,0.002]
[1761949082002,14.81221356,3867.9,3867.8,0.002]
[1761949082329,15.37029803,3867.9,3867.8,0.002]
[1761949082694,15.7758908,3867.9,3867.8,0.002]
[1761949082891,35.25097604,3867.9,3867.8,0.002]
[1761949083339,35.94862789,3867.9,3867.8,0.002]
[1761949083511,26.24155589,3867.9,3867.8,0.002]
[1761949083921,15.11054165,3867.9,3867.8,0.002]
[1761949084122,11.3178678,3867.9,3867.8,0.002]
[1761949084446,10.5576758,3867.9,3867.8,0.002]
[1761949084942,12.5776368,3867.9,3867.8,0.002]
[1761949085248,12.3339778,3867.9,3867.8,0.002]
[1761949085799,12.0672908,3867.9,3867.8,0.002]
[1761949086031,14.9028688,3867.9,3867.8,0.002]
[1761949086343,14.64757113,3867.9,3867.8,0.002]
[1761949086998,13.18149913,3867.9,3867.8,0.002]
[1761949087200,12.42493013,3867.9,3867.8,0.002]
[1761949087721,12.8306775,3867.9,3867.8,0.002]
[1761949088031,17.1051485,3867.9,3867.8,0.002]
[1761949088228,16.4806185,3867.9,3867.8,0.002]
[1761949088431,16.0026665,3867.9,3867.8,0.002]
[1761949088935,15.4488375,3867.9,3867.8,0.002]
[1761949089249,15.14654813,3867.9,3867.8,0.002]
[1761949089409,17.73193037,3867.9,3867.8,0.002]
[1761949089603,13.07002713,3867.9,3867.8,0.002]
[1761949090114,11.87694913,3867.9,3867.8,0.002]
[1761949090629,11.47135636,3867.9,3867.8,0.002]
[1761949090829,14.0567386,3867.9,3867.8,0.002]
[1761949091212,17.9068596,3867.9,3867.8,0.002]
[1761949092130,5.25036082,3867.9,3867.8,0.002]
[1761949092335,19.8434966,3867.9,3867.8,0.002]
[1761949093045,18.6887816,3867.9,3867.8,0.002]
[1761949093223,23.1806396,3867.9,3867.8,0.002]
[1761949093632,29.43943437,3867.9,3867.8,0.002]
[1761949093835,28.43943437,3867.9,3867.8,0.002]
[1761949094354,28.66243737,3867.9,3867.8,0.002]
[1761949095255,31.13407037,3867.9,3867.8,0.002]
[1761949095556,19.75386313,3867.9,3867.8,0.002]
[1761949096022,22.33924537,3867.9,3867.8,0.002]
[1761949096217,11.10340837,3867.9,3867.8,0.002]
[1761949096450,27.68785737,3867.9,3867.8,0.002]
[1761949097240,28.38450087,3867.9,3867.8,0.002]
[1761949097442,30.81362737,3867.9,3867.8,0.002]
[1761949097755,30.30199837,3867.9,3867.8,0.002]
[1761949097954,30.95606284,3867.9,3867.8,0.002]
[1761949098163,33.38929595,3867.9,3867.8,0.002]
[1761949098474,44.19070595,3867.9,3867.8,0.002]
[1761949098625,43.26083175,3867.9,3867.8,0.002]
[1761949099378,43.88494067,3867.9,3867.8,0.002]
[1761949101830,43.47932366,3867.9,3867.8,0.002]
[1761949102764,35.76002566,3867.9,3867.8,0.002]
[1761949103455,43.47932366,3867.9,3867.8,0.002]
[1761949104268,42.55015732,3867.9,3867.8,0.002]
[1761949104932,42.95580111,3867.9,3867.8,0.002]
[1761949105568,12.95580111,3867.9,3867.8,0.002]
[1761949105756,42.95580111,3867.9,3867.8,0.002]
[1761949106769,50.95580111,3867.9,3867.8,0.002]
[1761949107467,20.95580111,3867.9,3867.8,0.002]
[1761949107654,50.95580111,3867.9,3867.8,0.002]
[1761949108369,52.35061241,3867.9,3867.8,0.002]
[1761949108588,49.06579441,3867.9,3867.8,0.002]
[1761949109495,22.35061241,3867.9,3867.8,0.002]
[1761949109686,51.26085853,3867.9,3867.8,0.002]
[1761949109985,32.99115364,3867.5,3867.4,0.002]
[1761949110186,43.94223202,3867.5,3867.4,0.002]
[1761949110359,44.29123907,3867.5,3867.4,0.002]
[1761949110559,14.39492793,3867.5,3867.4,0.002]
[1761949110871,44.39492793,3867.5,3867.4,0.002]
[1761949111074,41.68048993,3867.5,3867.4,0.002]
[1761949111285,38.23235293,3867.5,3867.4,0.002]
[1761949111591,41.97463644,3867.5,3867.4,0.002]
[1761949112555,44.04633244,3867.5,3867.4,0.002]
[1761949114290,49.8995102,3867.5,3867.4,0.002]
[1761949114658,19.8995102,3867.5,3867.4,0.002]
[1761949114860,49.8995102,3867.5,3867.4,0.002]
[1761949115291,50.24851725,3867.5,3867.4,0.002]
[1761949115693,50.65419533,3867.5,3867.4,0.002]
[1761949116194,48.06854569,3867.5,3867.4,0.002]
[1761949116496,6.9198595,3867.5,3867.4,0.3441]
[1761949116703,6.81617064,3867.5,3867.4,0.6862]
[1761949116875,6.25885584,3867.5,3867.4,0.6862]
[1761949117077,0.40567808,3867.5,3867.4,0.6862]
[1761949117281,0.40567808,3867.5,3867.4,3.92133185]
[1761949117663,0.001,3867.9,3867.6,2.58556596]
[1761949117864,0.001,3867.9,3867.8,0.3421]
[1761949118272,0.001,3867.9,3867.8,0.6842]
[1761949119193,7.99999529,3867.5,3867.4,3.2112694]
[1761949119394,5.04656529,3867.5,3867.4,3.2112694]
[1761949121299,7.99999529,3867.5,3867.4,3.2112694]
[1761949122997,0.40554664,3867.6,3867.5,2.58564964]
[1761949123167,0.001,3867.8,3867.7,2.58551593]
[1761949123367,0.001,3867.8,3867.7,2.61137108]
[1761949127302,0.001,3867.8,3867.7,0.02585515]
[1761949127479,0.001,3867.8,3867.7,2.61137108]
[1761949131910,0.001,3867.8,3867.7,2.71499198]
[1761949132115,0.001,3867.8,3867.7,3.90820886]
[1761949132836,0.001,3867.8,3867.7,3.88235371]
[1761949139318,0.001,3867.8,3867.7,8.70330904]
[1761949142431,0.9673,3867.8,3867.7,2.58551593]
[1761949142737,0.001,3867.8,3867.6,0.002]
[1761949142947,0.001,3867.8,3867.7,2.61137108]
[1761949162475,0.001,3867.8,3867.7,4.01105108]
[1761949162677,0.001,3867.8,3867.7,5.73892698]
[1761949162883,0.001,3867.8,3867.7,5.71307183]
[1761949165571,0.001,3867.8,3867.7,5.84187183]
[1761949167878,0.001,3867.8,3867.7,6.24737583]
[1761949168870,0.001,3868.2,3867.9,1.39968]
[1761949169193,0.001,3868.2,3868.1,8.8058839]
[1761949171085,0.001,3868.2,3868.1,8.9346839]
[1761949174185,0.001,3868.2,3868.1,9.03827501]
[1761949175302,0.001,3868.2,3868.1,8.90947501]
[1761949190533,0.4841,3868.2,3868.1,4.08851968]
[1761949190735,0.9478,3868.2,3868.1,8.90947501]
[1761949191033,0.9478,3868.2,3868.1,10.13562648]
[1761949192229,0.9478,3868.2,3868.1,8.73594648]
[1761949192722,0.001,3868.2,3868.1,8.73594648]
[1761949193353,0.9478,3868.2,3868.1,8.73594648]
[1761949196647,0.001,3868.2,3868.1,8.73594648]
[1761949197019,0.4841,3868.2,3868.1,8.73594648]
[1761949197374,0.9478,3868.2,3868.1,8.73594648]
[1761949200584,0.9478,3868.2,3868.1,4.92454644]
[1761949201402,0.9478,3868.2,3868.1,0.10359111]
[1761949201904,0.9478,3868.2,3868.1,2.58524857]
[1761949204414,0.9478,3868.2,3868.1,2.61110105]
[1761949205168,0.9478,3868.2,3868.1,2.58524857]
[1761949205369,0.4841,3868.2,3868.1,2.61110105]
[1761949205565,0.001,3868.2,3868.1,3.67326891]
[1761949208439,0.9478,3868.2,3868.1,3.67326891]
[1761949208587,0.9478,3868.2,3868.1,2.61110105]
[1761949213325,0.9478,3868.2,3868.1,2.58524857]
[1761949214627,0.001,3868.2,3868.1,2.58524857]
[1761949215407,0.9418,3868.2,3868.1,2.58524857]
[1761949219355,0.001,3868.2,3868.1,2.58524857]
[1761949219707,0.001,3868.2,3868.1,3.6474165]
[1761949220550,0.97,3868.2,3868.1,3.6474165]
[1761949221933,0.4918,3868.2,3868.1,3.6474165]
[1761949222152,0.001,3868.2,3868.1,3.6474165]
[1761949222460,0.4918,3868.2,3868.1,3.6474165]
[1761949222613,0.4918,3868.2,3868.1,8.00844942]
[1761949222941,0.97,3868.2,3868.1,8.00844942]
[1761949225921,0.97,3868.2,3868.1,2.58524857]
[1761949229375,0.97,3868.2,3868.1,8.00844942]
[1761949232648,0.001,3868.2,3868.1,8.00844942]
[1761949232992,0.001,3868.2,3868.1,9.06803203]
[1761949234278,0.001,3868.2,3868.1,9.55443203]
[1761949237512,0.001,3868.2,3868.1,6.96918346]
[1761949237513,0.4726,3868.2,3868.1,6.96918346]
[1761949237680,0.958,3868.2,3868.1,2.58524857]
[1761949238669,0.958,3868.2,3868.1,8.00844942]
[1761949241614,0.958,3868.2,3868.1,2.58524857]
[1761949251631,0.958,3868.2,3867.9,0.002]
[1761949251835,0.4718,3868.0,3867.9,2.58737794]
[1761949252203,0.9241,3868.0,3867.9,2.58737794]
[1761949254734,0.9241,3868.0,3867.9,2.58738224]
[1761949259136,0.9241,3868.0,3867.9,0.002]
[1761949260145,0.9241,3868.0,3867.9,2.58738224]
[1761949261032,0.9241,3868.0,3867.9,0.002]
[1761949261433,1.05725837,3868.0,3867.9,0.002]
[1761949261647,1.08311368,3868.0,3867.9,0.002]
[1761949261846,1.05725837,3868.0,3867.9,0.002]
[1761949271565,1.05825837,3868.0,3867.9,0.002]
[1761949274082,1.46376955,3868.0,3867.9,0.002]
[1761949281692,1.49166955,3868.0,3867.9,0.002]
[1761949287372,1.35851118,3868.0,3867.9,0.002]
[1761949287773,1.35851118,3868.0,3867.9,2.58738224]
[1761949288174,1.35851118,3868.0,3867.9,0.002]
[1761949290098,0.953,3868.0,3867.9,0.002]
[1761949291069,1.358504,3868.0,3867.9,0.002]
[1761949291393,14.85846669,3868.0,3867.9,0.002]
[1761949291593,14.48459569,3868.0,3867.9,0.002]
[1761949292500,24.32721496,3868.0,3867.9,0.002]
[1761949292664,17.18103596,3868.0,3867.9,0.002]
[1761949293275,20.04687096,3868.0,3867.9,0.002]
[1761949294497,20.05923396,3868.0,3867.9,0.002]
[1761949294999,14.78565896,3868.0,3867.9,0.002]
[1761949295400,30.01561136,3868.0,3867.9,0.002]
[1761949295570,30.71402619,3868.0,3867.9,0.002]
[1761949295971,36.56720395,3868.0,3867.9,0.002]
[1761949296399,42.16016995,3868.0,3867.9,0.002]
[1761949297299,40.47665212,3868.0,3867.9,0.002]
[1761949298371,40.49351512,3868.0,3867.9,0.002]
[1761949299097,39.93421352,3868.0,3867.9,0.002]
[1761949299304,40.49241544,3868.0,3867.9,0.002]
[1761949299498,41.35690044,3868.0,3867.9,0.002]
[1761949300367,12.05310044,3868.0,3867.9,0.002]
[1761949300571,41.35690044,3868.0,3867.9,0.002]
[1761949301100,41.50205284,3868.0,3867.9,0.002]
[1761949301473,42.75085284,3868.0,3867.9,0.002]
[1761949305198,42.05310044,3868.0,3867.9,0.002]
[1761949305600,40.49062544,3868.0,3867.9,0.002]
[1761949305806,40.83967573,3868.0,3867.9,0.002]
[1761949306310,41.24527793,3868.0,3867.9,0.002]
[1761949306509,42.80775293,3868.0,3867.9,0.002]
[1761949308318,43.21346018,3868.0,3867.9,0.002]
[1761949308522,44.21633358,3868.0,3867.9,0.002]
[1761949308825,43.51858118,3868.0,3867.9,0.002]
[1761949310818,40.64505489,3868.0,3867.9,0.002]
[1761949311192,40.23945269,3868.0,3867.9,0.002]
[1761949311388,31.27141429,3868.0,3867.9,0.002]
[1761949311626,34.15369269,3868.0,3867.9,0.002]
[1761949312411,33.60211469,3868.0,3867.9,0.002]
[1761949312624,12.45880769,3868.0,3867.9,0.002]
[1761949312935,37.72201569,3868.0,3867.9,0.002]
[1761949313792,39.39288269,3868.0,3867.9,0.002]
[1761949313996,39.88577616,3868.0,3867.9,0.002]
[1761949314437,39.80621966,3868.0,3867.9,0.002]
[1761949314747,42.86440219,3868.0,3867.9,0.002]
[1761949315194,42.57150419,3868.0,3867.9,0.002]
[1761949315393,42.26348219,3868.0,3867.9,0.002]
[1761949315790,42.38955919,3868.0,3867.9,0.002]
[1761949316834,42.86440219,3868.0,3867.9,0.002]
[1761949318600,50.86440219,3868.0,3867.9,0.002]
[1761949319127,51.79528715,3868.0,3867.9,0.002]
[1761949319447,56.96621373,3868.0,3867.9,0.002]
[1761949319818,26.96621373,3868.0,3867.9,0.002]
[1761949320024,56.96621373,3868.0,3867.9,0.002]
[1761949320209,56.03532877,3868.0,3867.9,0.002]
[1761949321339,51.21345248,3868.0,3867.9,0.002]
[1761949322408,51.51857348,3868.0,3867.9,0.002]
[1761949323216,51.21345248,3868.0,3867.9,0.002]
[1761949325426,52.76845248,3868.0,3867.9,0.002]
[1761949325645,51.21345248,3868.0,3867.9,0.002]
[1761949325845,52.61023422,3868.0,3867.9,0.002]
[1761949327316,53.07357348,3868.0,3867.9,0.002]
[1761949327543,34.39069993,3867.7,3867.6,0.002]
[1761949327746,41.68614561,3867.7,3867.6,0.002]
[1761949327926,42.18274561,3867.7,3867.6,0.002]
[1761949328125,42.28643339,3867.7,3867.6,0.002]
[1761949329424,49.69461115,3867.7,3867.6,0.002]
[1761949329623,52.30612269,3867.7,3867.6,0.002]
[1761949330249,52.30612269,3867.7,3867.4,0.002]
[1761949330250,38.8403314,3867.5,3867.4,0.002]
[1761949330449,41.91348461,3867.5,3867.4,0.002]
[1761949330651,42.41008461,3867.5,3867.4,0.002]
[1761949330856,44.85611807,3867.5,3867.4,0.002]
[1761949331356,44.95981983,3867.5,3867.4,0.002]
[1761949331529,44.85611807,3867.5,3867.4,0.002]
[1761949332320,14.85611807,3867.5,3867.4,0.002]
[1761949332619,45.26179964,3867.5,3867.4,0.002]
[1761949335258,37.80768175,3867.1,3867.0,0.002]
[1761949335475,51.16838577,3867.1,3867.0,0.002]
[1761949335656,51.16838577,3867.1,3866.1,0.005]
[1761949335657,5.94616796,3867.0,3866.1,0.005]
[1761949335832,38.08394117,3867.0,3866.1,0.005]
[1761949337860,5.94630172,3866.8,3866.1,0.005]
[1761949338062,2.99202306,3866.2,3866.1,0.005]
[1761949338231,46.74481051,3866.2,3866.1,0.005]
[1761949338431,48.1171212,3866.2,3866.1,0.005]
[1761949338631,49.20272075,3866.2,3866.1,0.005]
[1761949339262,43.91957275,3866.2,3866.1,0.005]
[1761949339559,45.99877975,3866.2,3866.1,0.005]
[1761949340061,45.99877975,3866.2,3866.1,0.007]
[1761949340260,54.12881336,3866.2,3866.1,0.007]
[1761949340459,56.40438836,3866.2,3866.1,0.007]
[1761949341034,56.75343865,3866.2,3866.1,0.007]
[1761949342880,57.15929505,3866.2,3866.1,0.007]
[1761949343063,57.46441605,3866.2,3866.1,0.007]
[1761949343584,0.405504,3865.3,3865.1,0.005]
[1761949343787,18.50856906,3865.2,3865.1,0.005]
[1761949343948,18.48271375,3865.2,3865.1,0.005]
[1761949344669,20.78827275,3865.2,3865.1,0.005]
[1761949344865,21.19428364,3865.2,3865.1,0.005]
[1761949345051,28.24786342,3865.2,3865.1,0.005]
[1761949345376,28.70176342,3865.2,3865.1,0.005]
[1761949345563,29.56225782,3865.2,3865.1,0.005]
[1761949345747,44.71454582,3865.2,3865.1,0.005]
[1761949346886,30.7546402,3865.2,3865.1,0.005]
[1761949347088,33.34182844,3865.2,3865.1,0.005]
[1761949347447,30.7546402,3865.2,3865.1,0.005]
[1761949347648,28.7576062,3865.2,3865.1,0.005]
[1761949348244,6.65209426,3865.2,3865.1,0.005]
[1761949348550,6.65169264,3865.2,3865.1,0.005]
[1761949349189,6.24568175,3865.2,3865.1,0.005]
[1761949351598,8.70838093,3865.2,3865.1,0.005]
[1761949351807,6.65155493,3865.2,3865.1,0.005]
[1761949352561,9.03541493,3865.2,3865.1,0.005]
[1761949353385,6.65155493,3865.2,3865.1,0.005]
[1761949354496,12.81271693,3865.2,3865.1,0.005]
[1761949354972,11.23272593,3865.2,3865.1,0.005]
[1761949356014,19.23272593,3865.2,3865.1,0.005]
[1761949356774,14.65155493,3865.2,3865.1,0.005]
[1761949356970,16.73812793,3865.2,3865.1,0.005]
[1761949357590,16.73812793,3865.2,3865.1,0.007]
[1761949358491,17.50048086,3865.2,3865.1,0.007]
[1761949358694,17.29525786,3865.2,3865.1,0.007]
[1761949358922,16.73822693,3865.2,3865.1,0.007]
[1761949359394,15.20877857,3865.2,3865.1,0.007]
[1761949359791,18.76254257,3865.2,3865.1,0.007]
[1761949360615,20.63879683,3865.2,3865.1,0.007]
[1761949360782,29.82350283,3865.2,3865.1,0.007]
[1761949360982,26.87153283,3865.2,3865.1,0.007]
[1761949361209,22.92830483,3865.2,3865.1,0.007]
[1761949361421,21.98720483,3865.2,3865.1,0.007]
[1761949361598,21.58133165,3865.2,3865.1,0.007]
[1761949361797,23.80880765,3865.2,3865.1,0.007]
[1761949362219,14.80290539,3865.2,3865.1,0.007]
[1761949363615,16.95472639,3865.2,3865.1,0.007]
[1761949363820,16.98552539,3865.2,3865.1,0.007]
[1761949364923,17.3913943,3865.2,3865.1,0.007]
[1761949367227,9.3913943,3865.2,3865.1,0.007]
[1761949373220,10.75271847,3865.2,3865.1,0.007]
[1761949373538,10.44759747,3865.2,3865.1,0.007]
[1761949373947,11.41879747,3865.2,3865.1,0.007]
[1761949374239,10.94279747,3865.2,3865.1,0.007]
[1761949374414,10.44759747,3865.2,3865.1,0.007]
[1761949376308,11.14223486,3865.2,3865.1,0.007]
[1761949376729,11.54824264,3865.2,3865.1,0.007]
[1761949376938,20.12200364,3865.2,3865.1,0.007]
[1761949377143,18.83713664,3865.2,3865.1,0.007]
[1761949377340,17.73663034,3865.2,3865.1,0.007]
[1761949377644,18.70783034,3865.2,3865.1,0.007]
[1761949377816,9.23631634,3865.2,3865.1,0.007]
[1761949378007,19.73243334,3865.2,3865.1,0.007]
[1761949378651,17.27693034,3865.2,3865.1,0.007]
[1761949378820,16.88000334,3865.2,3865.1,0.007]
[1761949379047,16.89600334,3865.2,3865.1,0.007]
[1761949379254,16.42000334,3865.2,3865.1,0.007]
[1761949379677,15.92480334,3865.2,3865.1,0.007]
[1761949379973,16.89093634,3865.2,3865.1,0.007]
[1761949380271,16.62994234,3865.2,3865.1,0.007]
[1761949380677,18.0070217,3865.2,3865.1,0.007]
[1761949381050,17.2515557,3865.2,3865.1,0.007]
[1761949381250,17.0448377,3865.2,3865.1,0.007]
[1761949381545,17.5400377,3865.2,3865.1,0.007]
[1761949381874,18.0160377,3865.2,3865.1,0.007]
[1761949382171,17.0339057,3865.2,3865.1,0.007]
[1761949382466,16.4284587,3865.2,3865.1,0.007]
[1761949382638,15.4572587,3865.2,3865.1,0.007]
[1761949383051,17.2829387,3865.2,3865.1,0.007]
[1761949383935,8.6709957,3865.2,3865.1,0.007]
[1761949384137,2.99296001,3864.8,3864.7,0.002]
[1761949384341,38.67423756,3864.8,3864.7,0.002]
[1761949384536,43.87614915,3864.8,3864.7,0.002]
[1761949384968,45.55887515,3864.8,3864.7,0.002]
[1761949385266,25.50785729,3864.4,3864.3,0.002]
[1761949385468,28.89542397,3864.4,3864.3,0.002]
[1761949385668,29.37142397,3864.4,3864.3,0.002]
[1761949386043,38.35223197,3864.4,3864.3,0.002]
[1761949386273,38.16928126,3864.4,3864.3,0.002]
[1761949386469,43.00046772,3864.4,3864.3,0.002]
[1761949387171,44.26811272,3864.4,3864.3,0.002]
[1761949387778,36.44940572,3864.4,3864.3,0.002]
[1761949387955,35.44847372,3864.4,3864.3,0.002]
[1761949388158,35.51153472,3864.4,3864.3,0.002]
[1761949388358,36.20916416,3864.4,3864.3,0.002]
[1761949389076,19.32034716,3864.4,3864.3,0.002]
[1761949389381,18.68737087,3864.4,3864.3,0.002]
[1761949389551,18.33832058,3864.4,3864.3,0.002]
[1761949389753,20.92604441,3864.4,3864.3,0.002]
[1761949390376,24.21768214,3864.4,3864.3,0.002]
[1761949390581,23.74291314,3864.4,3864.3,0.002]
[1761949390958,26.34878103,3864.4,3864.3,0.002]
[1761949391154,33.70283047,3864.4,3864.3,0.002]
[1761949391371,32.91767626,3864.4,3864.3,0.002]
[1761949391548,31.80715126,3864.4,3864.3,0.002]
[1761949391749,39.80715126,3864.4,3864.3,0.002]
[1761949391944,44.36356772,3864.4,3864.3,0.002]
[1761949392177,56.92783872,3864.4,3864.3,0.002]
[1761949393452,58.26513881,3864.4,3864.3,0.002]
[1761949393656,57.33384338,3864.4,3864.3,0.002]
[1761949393856,56.77661974,3864.4,3864.3,0.002]
[1761949394118,57.33402876,3864.4,3864.3,0.002]
[1761949394483,58.72690472,3864.4,3864.3,0.002]
[1761949395269,58.83069043,3864.4,3864.3,0.002]
[1761949395683,56.60141447,3864.4,3864.3,0.002]
[1761949396292,57.13269347,3864.4,3864.3,0.002]
[1761949397371,56.72668881,3864.4,3864.3,0.002]
[1761949397573,57.03180981,3864.4,3864.3,0.002]
[1761949398384,56.33277478,3864.4,3864.3,0.002]
[1761949398582,54.8753611,3864.4,3864.3,0.002]
[1761949399379,56.9280241,3864.4,3864.3,0.002]
[1761949400681,56.6229031,3864.4,3864.3,0.002]
[1761949400877,55.9181001,3864.4,3864.3,0.002]
[1761949401077,47.9168101,3864.4,3864.3,0.002]
[1761949401278,52.3986681,3864.4,3864.3,0.002]
[1761949401709,52.54555477,3864.4,3864.3,0.002]
[1761949402289,27.02909877,3864.4,3864.3,0.002]
[1761949402614,48.00657377,3864.4,3864.3,0.002]
[1761949403611,51.0682351,3864.4,3864.3,0.002]
[1761949404202,51.47426191,3864.4,3864.3,0.002]
[1761949404401,58.36274891,3864.4,3864.3,0.002]
[1761949405024,57.39461991,3864.4,3864.3,0.002]
[1761949405226,56.71052091,3864.4,3864.3,0.002]
[1761949405533,52.87494091,3864.4,3864.3,0.002]
[1761949405743,51.38581591,3864.4,3864.3,0.002]
[1761949406602,51.59711191,3864.4,3864.3,0.002]
[1761949406829,51.28477291,3864.4,3864.3,0.002]
[1761949407433,50.35714958,3864.4,3864.3,0.002]
[1761949407630,57.43512558,3864.4,3864.3,0.002]
[1761949412314,58.82800154,3864.4,3864.3,0.002]
[1761949412546,58.60343954,3864.4,3864.3,0.002]
[1761949412748,58.82800154,3864.4,3864.3,0.002]
[1761949413246,62.26631204,3864.4,3864.3,0.002]
[1761949413431,62.26631204,3864.4,3864.1,0.005]
[1761949413432,34.39304177,3864.2,3864.1,0.005]
[1761949413630,36.11958875,3864.2,3864.1,0.005]
[1761949413829,36.59788875,3864.2,3864.1,0.005]
[1761949414349,38.5619897,3864.2,3864.1,0.005]
[1761949415246,4.39317571,3864.0,3863.9,0.002]
[1761949415439,51.318841,3864.0,3863.9,0.002]
[1761949415638,51.77128569,3864.0,3863.9,0.002]
[1761949415852,52.28118312,3864.0,3863.9,0.002]
[1761949417049,47.44999666,3864.0,3863.9,0.002]
[1761949417247,48.40993283,3864.0,3863.9,0.002]
[1761949417452,48.00383431,3864.0,3863.9,0.002]
[1761949418253,48.32812198,3864.0,3863.9,0.002]
[1761949420452,48.73420634,3864.0,3863.9,0.002]
[1761949422448,48.40991867,3864.0,3863.9,0.002]
[1761949422645,48.30611976,3864.0,3863.9,0.002]
[1761949424531,17.163835,3863.2,3863.1,0.005]
[1761949424739,22.17727977,3863.2,3863.1,0.005]
[1761949425232,21.22356648,3863.2,3863.1,0.005]
[1761949425831,29.22356648,3863.2,3863.1,0.005]
[1761949426228,15.49638448,3863.2,3863.1,0.005]
[1761949426538,27.60379148,3863.2,3863.1,0.005]
[1761949427461,29.26121748,3863.2,3863.1,0.005]
[1761949428457,33.00728848,3863.2,3863.1,0.005]
[1761949428657,32.79711548,3863.2,3863.1,0.005]
[1761949429563,33.12759148,3863.2,3863.1,0.007]
[1761949429735,25.08019075,3863.2,3863.1,0.007]
[1761949430332,24.89949575,3863.2,3863.1,0.007]
[1761949430637,22.65938275,3863.2,3863.1,0.007]
[1761949431438,26.78011775,3863.2,3863.1,0.007]
[1761949432547,26.66866875,3863.2,3863.1,0.007]
[1761949433271,25.29652575,3863.2,3863.1,0.007]
[1761949433448,25.24583675,3863.2,3863.1,0.007]
[1761949433977,25.65192526,3863.2,3863.1,0.007]
[1761949434142,25.33061426,3863.2,3863.1,0.007]
[1761949434470,25.38526926,3863.2,3863.1,0.007]
[1761949435561,15.20528893,3863.2,3863.1,0.007]
[1761949435942,14.79920042,3863.2,3863.1,0.007]
[1761949438944,15.20526888,3863.2,3863.1,0.007]
[1761949439486,35.9021726,3863.2,3863.1,0.007]
[1761949439686,31.84718122,3863.2,3863.1,0.007]
[1761949439863,31.50692522,3863.2,3863.1,0.007]
[1761949440187,31.01102522,3863.2,3863.1,0.007]
[1761949440589,31.29597722,3863.2,3863.1,0.007]
[1761949441491,53.42232666,3863.2,3863.1,0.007]
[1761949441667,46.56393266,3863.2,3863.1,0.007]
[1761949442462,50.87508682,3863.2,3863.1,0.007]
[1761949443359,45.1125522,3863.2,3863.1,0.007]
[1761949443560,52.4456562,3863.2,3863.1,0.007]
[1761949443790,53.84267844,3863.2,3863.1,0.007]
[1761949443974,53.43660998,3863.2,3863.1,0.007]
[1761949444587,52.03958774,3863.2,3863.1,0.007]
[1761949444887,52.44585657,3863.2,3863.1,0.007]
[1761949446664,0.405504,3862.4,3862.1,0.005]
[1761949446866,20.594778,3862.2,3862.1,0.005]